{"text_format":"1","workbook":"xlsx","n_sheets":5,"sheets":["Guia","InformeVentasDistr","ListadoDistribuidores","ListadoPelCol","ListadoExhibidores"],"not_rendered":{"charts":0,"images":22,"macros":1,"external_links":2,"defined_names":109,"comments":1,"pivot_tables":0},"unopened":[],"bounds":{"document_bytes":16777216,"sheet_cells":100000,"rows_first":2000,"rows_last":500,"rows_between":2000,"halvings":0,"cell_chars":16384,"cell_head_chars":4096},"cells_cut":0,"cells_raw":0,"read":"whole","date_system":"1900"}

{"sheet":"Guia","index":0,"n_rows":169,"n_cols":14,"rows_kept":169,"cut":false,"hidden":false,"merged":[[16,1,16,8],[0,4,1,11],[2,4,2,11],[0,1,2,3]]}
[null,null,null,null,"PROCESO GESTION Y RECAUDO DE RECURSOS",null,null,null,null,null,null,null,"Código","GR-GU-1"]
[null,null,null,null,null,null,null,null,null,null,null,null,"Fecha","2022-05-31"]
[null,null,null,null,"Guía para informe de ventas de distribuidores",null,null,null,null,null,null,null,"Versión",1]
[]
[]
[]
[]
[]
[]
[null,"1.","Datos del Distribuidor"]
[]
[]
[]
[]
[]
[]
[null,"Información del distribuidor.\n"]
[]
[]
[]
[]
[]
[]
[null,null,"Si el NIT no está registrado tenga en cuenta los siguientes pasos:"]
[null,null,"Dar clic en Si"]
[]
[]
[]
[]
[]
[]
[]
[]
[]
[null,null,"Al dar clic en la opción Si aparecerá el siguiente formulario, ingrese la razón social/ nombre del distribuidor según corresponda"]
[]
[]
[]
[]
[]
[]
[]
[]
[]
[]
[]
[]
[]
[]
[]
[]
[]
[]
[null,"2.","Trimestre"]
[null,null,"Seleccione el trimestre y año que va a informar"]
[]
[]
[]
[]
[]
[null,"3.","Botones agregar y eliminar filas"]
[]
[]
[]
[]
[null,null,"Agregar filas en medio de las filas existentes"]
[null,null,"a. Ingrese el número de filas a insertar, "]
[null,null,"b. Seleccione toda la fila  donde desea insertarlas"]
[null,null,"c. Haga clic en el botón Agregar"]
[null,null,"En el ejemplo se desea insertar 1  fila y  se selecciona la fila 14, ubicación dónde se quiere agregar la fila:"]
[]
[]
[]
[]
[]
[]
[]
[]
[]
[]
[]
[]
[]
[]
[]
[]
[]
[]
[null,null,"Eliminar filas"]
[null,null,"Seleccione las filas a eliminar y haga clic en el botón eliminar"]
[]
[]
[]
[]
[]
[]
[]
[]
[]
[]
[]
[]
[]
[]
[]
[]
[]
[null,"Nota: Si no se seleccionan las filas los botones Agregar y Eliminar, ejecutaran la acción a partir de la ultima fila."]
[]
[null,"3.","Datos de los Exhibidores"]
[]
[null,null,"Ingrese el NIT y el formulario traerá el digito de verificación y el nombre del exhibidor, sino existe ese NIT se puede registrar:"]
[]
[]
[]
[]
[]
[]
[]
[]
[]
[]
[null,null,"Al dar clic en la opción Si aparecerá el siguiente formulario, ingrese la razón social/ nombre del exhibidor según corresponda"]
[]
[]
[]
[]
[]
[]
[]
[]
[]
[]
[]
[]
[]
[]
[]
[]
[]
[]
[]
[]
[]
[]
[]
[]
[null,"4.","Ingresar información de ventas relacionada con las películas No Colombianas"]
[]
[]
[]
[]
[]
[]
[]
[]
[]
[]
[null,"5.","Ingresar información de ventas relacionada con las películas Colombianas"]
[]
[]
[]
[]
[]
[]
[]
[]
[]
[null,"5.1","Consulte el número de la resolución en la hoja \"ListadoPelCol\", si el número de resolución de producto nacional no existe tenga en cuenta los siguientes pasos"]

{"sheet":"InformeVentasDistr","index":1,"n_rows":13,"n_cols":15,"rows_kept":13,"cut":false,"hidden":false,"merged":[[0,5,0,10],[0,1,0,2],[1,3,1,12],[7,1,7,2],[8,1,8,2],[6,3,6,4],[2,1,2,2],[4,1,4,2],[2,3,2,4],[4,3,4,6],[6,1,6,2]]}
[null,null,null,null,null,"PROCESO GESTION Y RECAUDO DE RECURSOS\nInforme de ventas de distribuidores",null,null,null,null,null,"Código\nFecha\nVersión","GR-FO-15\n31/05/2022\n1"]
[]
[null,"NIT",null,null,null,"DV",{"$f":"IF($D3<>\"\",0,\"\")","v":""}]
[]
[null,"Nombre del Distribuidor",null,{"$f":"IF($D$3<>\"\",VLOOKUP($D$3,ListadoDistribuidores!$B:$D,3,0),\"\")","v":""}]
[]
[null,"Trimestre",null,null,null,"Año"]
[null,"Cantidad de filas agregar o eliminar:"]
[null,0]
[]
[null,"ITEM","NIT","DV","NOMBRE EXHIBIDOR","MES","Pelicula Colombiana?","PELÍCULA NO COLOMBIANA\nVALOR PAGADO POR EL EXHIBIDOR AL DISTRIBUIDOR (INGRESO DEL DISTRIBUIDOR)","PELÍCULA NO COLOMBIANA          VALOR RETENIDO POR EL EXHIBIDOR AL DISTRIBUIDOR (CUOTA CDC A CARGO DEL DISTRIBUIDOR)","PELÍCULA COLOMBIANA NÚMERO RESOLUCIÓN DE PRODUCTO NACIONAL","PELÍCULA COLOMBIANA TÍTULO DE LA PELÍCULA  ","PELÍCULA  COLOMBIANA                          VALOR PAGADO POR EL EXHIBIDOR AL DISTRIBUIDOR \n( INGRESO DISTRIBUIDOR  ) ","OBSERVACIONES","ESTADO DEL EXHIBIDOR","ESTADO DE PELICULA COLOMBIANA"]
[null,1]
[null,"1. Si requiere agregue o elimine filas"]

{"sheet":"ListadoDistribuidores","index":2,"n_rows":75,"n_cols":6,"rows_kept":75,"cut":false,"hidden":true,"merged":[]}
["No","NIT","DV","RAZÓN SOCIAL/ DISTRIBUIDOR"]
[1,901116948,4,"ALTERNAVISTA S.A.S.",4,{"$f":"C2=E2","v":true}]
[2,900076228,3,"ASOCIACIÓN COLECTIVO DE MEDIOS ALTERNATIVOS DE JÓVENES DEL DISTRITO DE AGUABLANCA",3,{"$f":"C3=E3","v":true}]
[3,901186260,5,"ATMÓSFERAS S.A.S.",5,true]
[4,830057393,6,"BABILLA CINE S.A.S.",6,true]
[5,830019723,1,"BOTERO NEGOCIOS EMPRESARIALES S.A.S.",1,true]
[6,901468122,8,"BRIOSA FILMS S.A.S.",8,true]
[7,901268119,7,"BRUMA CINE S.A.S.",7,true]
[8,901286896,8,"CAMBIO DE OJOS S.A.S.",8,true]
[9,860059271,4,"CAPRICORNIO LTDA",4,true]
[10,900406827,2,"CASA KHINO & GRAPH S.A.S.",2,true]
[11,901265789,8,"CINECITY S.A.S.",8,true]
[12,900921325,5,"CINECOLOR COLOMBIA S.A.S.",5,true]
[13,890900076,0,"CINE COLOMBIA S.A.",0,true]
[14,900447766,7,"CINEMARAN FILMS S.A.S.",7,true]
[15,830055643,3,"CINEMARK COLOMBIA S.A.S.",3,true]
[16,800066413,4,"CINEPLEX S.A.S. ",4,true]
[17,900988633,7,"CINEVISTA S.A.S.",7,true]
[18,900180096,2,"COLISEO FILMS S.A.",2,true]
[19,830016621,5,"COMPAÑÍA INTERNACIONAL DE ENTRETENIMIENTO S.A.S - CIE S.A.S",5,true]
[20,900432320,0,"CUEVASFILM CINE ENTRETENIMIENTO S.A.S.",0,true]
[21,900790901,4,"DAGAMEDIA AUDIOVISUALES S.A.S ",4,true]
[22,901269527,3,"DANTA CINE SAS (JAGUAR DISTRIBUCIÓN S.A.S.)",3,true]
[23,900765786,8,"DIAMOND FILMS COLOMBIA  S.A.S",8,true]
[24,901101101,8,"DISTRITO PACÍFICO S.A.S",8,true]
[25,900162810,9,"DOC: CO AGENCIA DE PROMOCIÓN Y DISTRIBUCIÓN S.A.S.",9,true]
[26,900702573,6,"E-MOTION S.A.S.",6,true]
[27,901567274,3,"EXODO TV S.A.S.",3,true]
[28,901361752,7,"FUEGO INEXTINGUIBLE CINE S.A.S",7,true]
[29,900797868,0,"FUNDACIÓN INDYON .TV",0,true]
[30,860076546,6,"GRANCOLOMBIANA CINEMATOGRAFICA LTDA",6,true]
[31,901382330,2,"GÓTICO TROPICAL S.A.S.",2,true]
[32,830094864,0,"GRUPO CANZION LTDA.",0,true]
[33,830099438,9,"GRUPO SAGITARIO S.A.S.",9,true]
[34,900061209,8,"HD CINEMA COLOMBIA E.U.",8,true]
[35,900064443,9,"INDUSTRIAS AUDIOVISUALES COLOMBIANAS S.A.",9,true]
[36,900443673,2,"INTELIGRUPO S.A.S.",2,true]
[37,900752762,5,"INTERIOR XIII S.A.S.",5,true]
[38,901326975,4,"INVERCINES S.A.S.",4,true]
[39,800266391,9,"JORDANY HERRERA CAÑÓN",9,true]
[40,900334077,5,"LABORATORIOS BLACK VELVET LTDA.",5,true]
[41,900600898,6,"MUTOKINO S.A.S.",6,true]
[42,900745734,1,"ONLINE COLOMBIA S.A.S.",1,true]
[43,800030932,1,"PROCINAL BOGOTA LTDA.",1,true]
[44,900026291,4,"PRODUCTORA LAP S.A.S.",4,true]
[45,901276725,4,"RANGO DINÁMICO S.A.S.",4,true]
[46,901126625,3,"RED COLLISION DISTRIBUTION S.A.S.",3,true]
[47,890105652,3,"ROYAL FILMS S.A.S",3,true]
[48,900555863,6,"RUGE FILMS S.A.S.",6,true]
[49,901544328,3,"SAMSARA FILMS S.A.S.",3,true]
[50,900872224,9,"SANTA BÁRBARA FILMS S.A.S.",9,true]
[51,901168059,4,"TAILS INTERNATIONAL SALES S.A.S.",4,true]
[52,901613838,4,"TELAR CINE S.A.S.",4,true]
[53,900789040,6,"TRANSIT ENTERTAINMENT S.A.S.",6,true]
[54,900126514,0,"TRILCE CINEMA PRODUCCIÓN AUDIOVISUAL LTDA.",0,true]
[55,860028306,0,"UNITED INTERNATIONAL PICTURES  COLUMBIA TRISTAR LTDA",0,true]
[56,860530236,5,"V.O. CINES Y CIA S EN C",5,true]
[57,901536015,1,"VISUS MEDIA S.A.S.",1,true]
[58,900667379,3,"TIMELESS ENTERTAINMENT COLOMBIA S.A.S",3,true]
[59,901643552,1,"FUNDACIÓN DISTRI ARTE",1,true]
[60,900912421,6,"FUNDACIÓN IMPULSOS",6,true]
[61,900370581,9,"TEZIO TECNOLOGÍA INTERACTIVA S.A.S.",9,true]
[62,900226661,4,"CORPORACIÓN IN VITRO VISUAL",4,true]
[63,901489127,4,"PENROSE MEDIA S.A.S.",4,true]
[64,900545844,3,"CORPORACIÓN CINTADHESIVA COMUNICACIONES ",5,{"$f":"C65=E65","v":false}]
[65,900482130,1,"TANGO FILMS S.A.S."]
[66,901045344,0,"RED CARPET S.A.S."]
[67,901734375,5,"THE G7 MEDIA DISTRIBUTION S.A.S"]
[68,901772968,4,"LUNA BEGONIA S.A.S."]
[69,827000940,9,"CORPORACIÓN THE LIGHT HOUSE"]
[70,901801550,5,"COGOLLO CINEMA S.A.S"]
[71,79882747,4,"JEFFERSON RENGIFO MERA"]
[72,900451369,1,"TAKE ONE PRODUCTIONS S.A.S."]
[73,901408791,9,"VISPER S.A.S."]
[74,900839792,1,"FAHRENHEIT FILMS S.A.S"]

{"sheet":"ListadoPelCol","index":3,"n_rows":324,"n_cols":5,"rows_kept":324,"cut":false,"hidden":false,"merged":[]}
["No","Acta/Resolucion","Año de expedición","Nombre Pelicula"]
[1,133,2018,"UNA SELFIE CON TIMOCHENKO"]
[2,359,2018,"AMALIA LA SECRETARIA"]
[3,455,2018,"SAL"]
[4,393,2018,"PELUCAS Y ROKANROL"]
[5,997,2018,"LA CANDIDATA: SÓLO NOS SALVA LA BRUJA"]
[6,419,2018,"SOMOS CALENTURA"]
[7,1520,2018,"Y NOS FUIMOS PAL MUNDIAL"]
[8,214,2018,"AMANECER"]
[9,2386,2018,"SANTO CACHÓN"]
[10,446,2018,"PÁJAROS DE VERANO"]
[11,2587,2018,"PERÍODO DE PRUEBA"]
[12,2647,2018,"EL MAN DEL PORNO"]
[13,2960,2018,"LA MUJER DE LOS 7 NOMBRES"]
[14,1485,2018,"YO NO ME LLAMO RUBÉN BLADES"]
[15,3035,2018,"PA LAS QUE SEA PAPÁ"]
[16,3245,2018,"EL REALITY"]
[17,742,2018,"DOBLE"]
[18,3455,2018,"LA NEGOCIACIÓN"]
[19,3536,2018,"¿CÓMO TE LLAMAS?"]
[20,955,2018,"WAJIB"]
[21,4015,2018,"THE SMILING LOMBANA"]
[22,4155,2018,"EL QUE SE ENAMORA PIERDE"]
[23,4233,2018,"CIUDADES A CONTRALUZ"]
[24,4128,2018,"EL PASEO 5"]
[25,4175,2018,"ENTRE NOSOTROS"]
[26,254,2018,"MONOS"]
[27,2387,2018,"NIÑA ERRANTE"]
[28,253,2019,"LOS AJENOS FÚTBOL CLUB"]
[29,3775,2018,"GANGES, UN VIAJE POR LOS SENTIDOS DEL AGUA"]
[30,2871,2018,"EL PIEDRA"]
[31,534,2019,"BOYACOMAN Y LA ESMERALDA SAGRADA"]
[32,635,2019,"LA SUCURSAL"]
[33,4243,2018,"AMALIA"]
[34,229,2019,"LA MÉDIUM DEL VENERABLE DR. JOSÉ GREGORIO HERNÁNDEZ CISNEROS"]
[35,895,2019,"ALMA DE HÉROE"]
[36,897,2019,"#QUERICOPAÍS"]
[37,1025,2019,"MAMÁ AL VOLANTE"]
[38,1132,2019,"FEO PERO SABROSO"]
[39,510,2019,"IRMA"]
[40,992,2019,"DOS AGUAS"]
[41,1434,2019,"CALIBAN"]
[42,1754,2018,"EL AMPARO"]
[43,3708,2018,"HOMO BOTANICUS"]
[44,3878,2018,"DOBLE YO"]
[45,1536,2019,"EL REY DEL SAPO"]
[46,1948,2019,"EL SENDERO DE LA ANACONDA"]
[47,3092,2018,"LAPÜ"]
[48,1391,2019,"LOS FIERROS"]
[49,2358,2019,"EL ABUELO"]
[50,280,2018,"LOLA ... DRONES"]
[51,1131,2018,"LOS SILENCIOS"]
[52,554,2018,"EL CONCURSANTE"]
[53,856,2019,"LOS DÍAS DE LA BALLENA"]
[54,2632,2019,"PERSEGUIDA"]
[55,2614,2019,"EMBARAZADA POR OBRA Y GRACIA"]
[56,3565,2018,"LA SINFÓNICA DE LOS ANDES"]
[57,2971,2019,"EL COCO 3"]
[58,908,2018,"AFUERA DEL TIEMPO"]
[59,3124,2019,"AMIGO DE NADIE"]
[60,379,2019,"LOS FANTASMAS DEL CARIBE"]
[61,2937,2019,"ME LLEVARÁS EN TÍ"]
[62,2972,2019,"LITIGANTE"]
[63,2460,2019,"FU"]
[64,3123,2019,"LLUVIA"]
[65,3125,2019,"LA FORMA DEL PRESENTE"]
[66,3323,2019,"DEDICADA A MI EX"]
[67,3581,2019,"LA PACHANGA"]
[68,3592,2019,"AL SON QUE ME TOQUEN BAILO"]
[69,3593,2019,"NO ANDABA MUERTO, ESTABA DE PARRANDA"]
[70,3997,2019,"LOCO POR VOS"]
[71,"0035",2020,"BENDITA REBELDÍA"]
[72,4008,2019,"LA FORTALEZA"]
[73,449,2019,"DESPUÉS DE NORMA"]
[74,3120,2019,"SEGUNDA ESTRELLA A LA DERECHA"]
[75,3560,2019,"LA BRONCA"]
[76,2540,2019,"FORTUNA LAKE (TERROR EN LA LAGUNA)"]
[77,3754,2018,"SUMERCÉ"]
[78,196,2020,"PERDIDA"]
[79,2475,2019,"FAIT VIVIR"]
[80,532,2020,"TANTAS ALMAS"]
[81,648,2020,"ÁNGEL DE MI VIDA"]
[82,299,2020,"NO TRAGUE N'TERO"]
[83,2319,2019,"DOPAMINA "]
[84,660,2019,"MI PASIÓN POR DAVID"]
[85,717,2020,"CUANDO LOS HOMBRES QUEDAN SOLOS"]
[86,754,2020,"TUNDAMA"]
[87,1081,2020,"JINETES DEL PARAÍSO"]
[88,1255,2020,"EL OLVIDO QUE SEREMOS"]
[89,1253,2020,"EL  BAÑO"]
[90,782,2019,"PIROTECNIA"]
[91,1026,2019,"LÁZARO"]
[92,162,2020,"JAGUAR VOZ DE UN TERRITORIO"]
[93,1776,2019,"LUZ"]
[94,1561,2020,"NOWHERE"]
[95,309,2020,"ANGELA"]
[96,1609,2019,"GALLO DE PELEA"]
[97,2014,2020,"RELATOS DE RECONCILIACIÓN"]
[98,2385,2020,"SOBRE RUEDAS"]
[99,1682,2020,"UNO MÁS"]
[100,1996,2020,"COMO EL CIELO DESPUÉS DE LLOVER"]
[101,2563,2020,"DIAVLO"]
[102,2066,2020,"RUIDO"]
[103,1980,2019,"UN TAL ALONSO QUIJANO"]
[104,2477,2019,"LOS CONDUCTOS"]
[105,237,2021,"EL SEGUNDO ENTIERRO DE ALEJANDRINO"]
[106,312,2021,"LA DESAPARICIÓN DE SOFÍA"]
[107,330,2021,"LOKILLO EN: MI OTRA YO"]
[108,201,2021,"DEL OTRO LADO"]
[109,3653,2019,"SUSPENSIÓN"]
[110,3566,2018,"EN TRÁNSITO"]
[111,1984,2019,"UNA MADRE"]
[112,2938,2019,"BIABU CHUPEA –UN GRITO EN EL SILENCIO"]
[113,1426,2020,"LAS MEJORES FAMILIAS"]
[114,443,2021,"LLANTO MALDITO"]
[115,2216,2020,"LAVAPERROS"]
[116,4191,2018,"CLARA"]
[117,774,2021,"VENTANA DE TIEMPO"]
[118,1450,2020,"PUEBLO DE CENIZAS"]
[119,2476,2019,"LA FRONTERA"]
[120,955,2021,"AMOR REBELDE"]
[121,2455,2020,"FRÍO EN LA MONTAÑA"]
[122,3128,2019,"KAIRÓS"]
[123,206,2021,"FBI FEOS BOBOS E INGENUOS"]
[124,261,2021,"UNA VISITA INESPERADA"]
[125,3685,2019,"LA PESCA DEL ATÚN BLANCO"]
[126,1,2021,"MEMORIA"]
[127,1484,2021,"LA NOCHE DE LA BESTIA"]
[128,5,2021,"NO ME ECHEN ESE MUERTO"]
[129,1841,2020,"LA VENGANZA DE JAIRO"]
[130,1167,2021,"ENTRE LA NIEBLA"]
[131,1455,2021,"SICOSEXUAL"]
[132,23,2021,"5 IGNORANTES BUSCANDO UNA VERDAD"]
[133,779,2021,"HILO DE RETORNO"]
[134,42,2021,"EL PASEO 6"]
[135,44,2021,"FRITANGA EXPRESS"]
[136,58,2021,"UN RABÓN CON CORAZÓN"]
[137,121,2022,"LA EXHUMACIÓN"]
[138,109,2022,"EL FILM JUSTIFICA LOS MEDIOS"]
[139,1581,2021,"EL HOMBRE QUE ESTÁ AL MEDIO"]
[140,239,2021,"MESA DE TAREAS"]
[141,161,2022,"LAS RAZONES DEL LOBO"]
[142,131,2022,"MAREA VERDE","2022-06-03"]
[143,794,2021,"AMPARO","2022-06-03"]
[144,1494,2021,"OBJETOS REBELDES"]
[145,2656,2020,"RÍO SUCIO"]
[146,1478,2021,"ENTRE FUEGO Y AGUA"]
[147,80,2022,"CICATRICES EN LA TIERRA"]
[148,62,2022,"ALGO AZUL"]
[149,103,2022,"ÁLVARO"]
[150,944,2021,"CANTOS QUE INUNDAN EL RÍO"]
[151,147,2021,"EL ÁRBOL DE MATÍAS"]
[152,110,2022,"LEADING LADIES"]
[153,211,2022,"LEYENDA VIVA"]
[154,183,2022,"NO ODIARÁS"]
[155,98,2022,"SI DIOS FUERA MUJER"]
[156,1527,2021,"ERMITAÑO"]
[157,778,2021,"NIJOLÉ, LA HUELLA DE LA EXISTENCIA"]
[158,227,2022,"SANA QUE SANA"]
[159,214,2022,"UN PARCERO EN NEW YORK"]
[160,1114,2021,"EL ÁRBOL ROJO"]
[161,1213,2020,"CÓLERA MORBO"]
[162,1041,2021,"LA CIUDAD DE LAS FIERAS"]
[163,120,2022,"APERTURA PARA QUE? O EL DESTINO DEL PLANETA"]
[164,200,2022,"LIMONADA, LIMONADA"]
[165,228,2022,"DISTANCIAMIENTO SOCIAL"]
[166,3561,2019,"EL ALMA QUIERE VOLAR"]
[167,320,2022,"EL ÚLTIMO HOMBRE SOBRE LA TIERRA"]
[168,533,2021,"FÓSFOROS MOJADOS"]
[169,176,2022,"HICIMOS UNA PELÍCULA"]
[170,14,2021,"HIJOS DEL VIENTO"]
[171,212,2022,"LA JAURÍA"]
[172,184,2022,"LA PÉRDIDA DE ALGO SENTIDO"]
[173,125,2022,"LA ROYA"]
[174,187,2022,"LOS REYES DEL MUNDO"]
[175,3229,2019,"MARIA SALVAJE"]
[176,92,2022,"NOCAUT"]
[177,111,2022,"PABLUS GALLINAZO"]
[178,249,2022,"REBELIÓN"]
[179,1049,2019,"SALVADOR"]
[180,72,2022,"SANSON"]
[181,266,2022,"SOCIOS POR ACCIDENTE"]
[182,143,2022,"SOMOS ECOS"]
[183,282,2019,"SUMERGIBLE"]
[184,337,2022,"¿QUE CORRE POR TUS VENAS?"]
[185,373,2023,"AMAR ES MADURAR"]
[186,156,2022,"BALADA PARA NIÑOS MUERTOS"]
[187,140,2022,"CAMILO TORRES RESTREPO, EL AMOR EFICAZ"]
[188,367,2023,"CUANDO LAS AGUAS SE JUNTAN"]
[189,377,2023,"DOMO"]
[190,225,2022,"EL ACTOR, EL DIRECTOR Y LA GUIONISTA"]
[191,347,2023,"EL GRAN BINGO"]
[192,290,2022,"GUAYABO"]
[193,338,2022,"HACE MUCHO QUE NO DUERMO"]
[194,272,2022,"LA NIEBLA DE LA PAZ"]
[195,384,2023,"LA OTRA FORMA"]
[196,399,2023,"LÍNEA DE TIEMPO"]
[197,299,2022,"NUESTRA PELÍCULA"]
[198,313,2022,"PEPE CÁCERES"]
[199,181,2022,"PETIT MAL"]
[200,209,2022,"SIETE DE AGOSTO"]
[201,267,2022,"TIERRA QUEBRÁ"]
[202,130,2022,"UN VARÓN"]
[203,294,2022,"AL OTRO LADO DEL MAR"]
[205,362,2023,"EL REZADOR"]
[206,324,2022,"MIS DOS VOCES"]
[207,235,2022,"SOY CRIS DE TIERRA BOMBA"]
[208,90,2022,"TORO"]
[209,304,2022,"ULTRAVIOLENCIA"]
[210,395,2023,"UTOPÍA"]
[211,219,2022,"WERAPARA"]
[212,256,2022,"AMANDO A MARTHA"]
[213,247,2022,"ANHELL69"]
[214,1876,2021,"AURORA"]
[215,"008",2002,"BOLÍVAR SOY YO"]
[216,129,2022,"CABALLO DE ACERO"]
[217,361,2023,"EL CANTO DEL AURICANTURI"]
[218,530,2023,"EL REY DE LA MONTAÑA"]
[219,394,2023,"EL ROJO MÁS PURO"]
[220,470,2023,"LA PIEL DEL TAMBOR"]
[221,427,2021,"MEMORIAS GUERRILLERAS"]
[222,35,2021,"NUBES GRISES SOPLAN SOBRE EL CAMPO VERDE"]
[223,275,2022,"PARTERAS"]
[224,82,2022,"PERFUME DE GARDENIAS"]
[225,301,2022,"PUENTES EN EL MAR"]
[226,86,2022,"RÍOS DE CENIZA"]
[227,516,2023,"SARA, NEYDA, TOMASA Y LAS OTRAS"]
[228,333,2022,"TIEMPO PRESENTE"]
[229,496,2023,"UNA MIRADA HONESTA"]
[230,476,2023,"VIVA EDY, LA HISTORIA DE UNA MÚSICA INDESTRUCTIBLE"]
[231,544,2023,"ACCIDENTES DE LA HISTORIA"]
[232,358,2023,"CATAPUM. NO TENGO DÓNDE CAER."]
[233,1938,2020,"DE UN MISMO ÁRBOL"]
[234,618,2023,"EL PASEO 7"]
[235,500,2023,"EL SANCOCHO"]
[236,474,2023,"LA BONGA"]
[237,355,2023,"LA MATRIARCA"]
[238,334,2022,"LAS BUENAS COSTUMBRES"]
[239,126,2022,"LOS ZULUAGAS"]
[240,452,2023,"PARTES DE UNA CASA"]
[241,615,2023,"\nQUIERO QUE ME MANTENGAN"]
[242,617,2023,"SOBRE LA MESA"]
[243,559,2023,"YO VÍ TRES LUCES NEGRAS"]
[244,552,2023,"LA SUPREMA"]
[245,736,2024,"40 DIAS PERDIDOS EN LA SELVA"]
[246,702,2024,"BARBITCH"]
[247,651,2024,"INVENTARIO"]
[248,581,2023,"AL RITMO DEL AGUA"]
[249,307,2022,"HERMANAS"]
[250,693,2024,"LOS DE LA CULPA"]
[251,371,2023,"BLUE ROOTS - RAÍCES AZULES"]
[252,585,2023,"LA HIERBA DEL DIABLO"]
[253,595,2023,"SOY DE AQUÍ "]
[254,331,2022,"CHAPARRAL TIERRA DE GRANDES"]
[255,273,2022,"MEMENTO MORI"]
[256,495,2023,"MANOS QUE HABLAN"]
[257,667,2024,"EL BOLERO DE RUBÉN"]
[258,655,2024,"ESPOSAS"]
[259,573,2023,"RAPUNZEL EL PERRO Y EL BRUJO"]
[260,598,2023,"MILAGRO DE FE"]
[261,237,2022,"ANA ROSA"]
[262,608,2023,"UN AMANTE DE INFARTO"]
[263,634,2023,"ESPECIAL ÉSTE"]
[264,558,2023,"AUXILIO "]
[265,621,2023,"HASTA QUE SE APAGUE EL SOL"]
[266,744,2024,"GRACIAS Y HASTA SIEMPRE ¡GARDEL ESTÁ VIVO!"]
[270,482,2023,"EXPLORA COLOMBIA"]
[272,599,2023,"MI AMIGO SHAKESPEARE"]
[273,192,2022,"NOSOTRAS"]
[274,505,2023,"RÍO ROJO "]
[275,1093,2021,"LA NIÑA Y EL CAZADOR"]
[279,428,2023,"MALTA"]
[280,1843,2020,"NI DE COÑA"]
[282,772,2021,"LOS VIVOS Y LOS MUERTOS"]
[285,597,2023,"DIÓGENES"]
[287,421,2023,"KINTSUGI"]
[288,380,2023,"MINOTAURO"]
[289,575,2023,"SARA LA FUERZA DEL MAR"]
[291.3,594,2023,"LOS DE ABAJO"]
[293,557,2023,"SÁBADO OSCURO"]
[294.7,642,2024,"LO PEOR HASTA EL MOMENTO"]
[296.39999999999998,659,2024,"TUMBADORES"]
[298.10000000000002,692,2024,"PUKEM SWA "]
[299.8,662,2024,"EN CENDRES (EN CENIZAS)"]
[301.5,703,2024,"SOY MÚCURA"]
[303.2,719,2024,"GOLÁN"]
[304.89999999999998,737,2024,"CARROPASAJERO"]
[306.60000000000002,736,2024,"40 DIAS PERDIDOS EN LA SELVA "]
[308.3,744,2024,"GRACIAS Y HASTA SIEMPRE, GARDEL ESTÁ VIVO"]
[310,758,2024,"EL PANTERA"]
[311.7,773,2024,"BIEN INMUEBLE"]
[313.39999999999998,776,2024,"CUCÚ"]
[315.10000000000002,779,2024,"LAS MONTAÑAS DE MIS PADRES"]
[316.8,785,2024,"MORICHALES"]
[318.5,806,2024,"LAS TOMATES"]
[320.2,802,2024,"EL TITÁN"]
[321.89999999999998,808,2024,"MI PUEBLO INFIERNO, EL INICIO DE UNA GUERRA..."]
[323.60000000000002,805,2024,"LA MORTUORIA "]
[325.3,795,2024,"EL DOBLE SECUESTRO DE SIGIFREDO LÓPEZ"]
[327,792,2024,"YO SOY"]
[328.7,788,2024,"SEMILLA DEL DESIERTO "]
[330.4,818,2024,"SELVA"]
[332.1,823,2024,"ADIÓS AL AMIGO"]
[333.8,828,2024,"ADICCIONES "]
[335.5,840,2024,"MI BESTIA"]
[337.2,841,2024,"¿POR QUÉ NADIE ME LO DIJO?"]
[338.9,839,2024,"LOS INCRÉDULOS"]
[340.6,842,2024,"SUEÑOS EN CONCRETO"]
[342.3,844,2024,"EL VAQUERO"]
[344,851,2024,"ALMA DEL DESIERTO"]
[345.7,854,2024,"BAJO UNA LLUVIA AJENA"]
[347.4,859,2024,"GUATES. EL JOROPO CONTRA LAS CUERDAS"]
[349.1,860,2024,"VICENTA B"]
[350.8,697,2024,"LA PIEL EN PRIMAVERA"]
[352.5,716,2024,"IGUALADA"]
[354.2,712,2024,"ESTO SE CALENTÓ"]
[355.9,729,2024,"KEKAR"]
[357.6,731,2024,"LOS SUEÑOS VIAJAN CON EL VIENTO"]
[359.3,742,2024,"VAMPIRAS. THE BRIDES"]
[361,757,2024,"GUTIÉRREZ"]
[362.7,760,2024,"COLIBRÍ"]
[364.4,771,2024,"EL ORIGEN DE LAS ESPECIES"]
[366.1,789,2024,"EN SOMBRAS"]
[367.8,830,2024,"ASALTO AL MAYOR"]

{"sheet":"ListadoExhibidores","index":4,"n_rows":105,"n_cols":5,"rows_kept":105,"cut":false,"hidden":true,"merged":[]}
["No","NIT","DV","RAZÓN SOCIAL / DECLARANTE/ EXHIBIDOR","FECHA DE REGISTRO"]
[1,17340148,1,"ALEXANDER COBO ORTIZ"]
[2,71292803,8,"ALEXANDER GIL GIRALDO"]
[3,901369995,6,"ALL CINE S.A.S."]
[4,79813768,4,"ANDRÉS CARO PAVA"]
[5,890317713,4,"ASOCIACION  PARA LA PROMOCION DE LAS ARTES - PROARTES "]
[6,805019832,5,"ASOCIACIÓN DE DISCAPACITADOS DEL VALLE- DISVALLE"]
[7,901384479,1,"AUTOCINE MAS S.A.S."]
[8,901395293,4,"AUTOCINEMA 33 S.A.S."]
[9,830057393,6,"BABILLA CINE S.A.S."]
[10,890900841,9,"CAJA DE COMPENSACION DE ANTIOQUIA COMFAMA"]
[11,890806490,5,"CAJA DE COMPENSACION FAMILIAR DE CALDAS"]
[12,891480000,1,"CAJA DE COMPENSACION FAMILIAR DE RISARALDA"]
[13,890506160,2,"CÁMARA DE COMERCIO DE OCAÑA"]
[14,891400669,6,"CÁMARA DE COMERCIO DE PEREIRA"]
[15,830095453,1,"CAMPOS SAAB  S.A.S."]
[16,70037828,6,"CARLOS JULIO GONGORA ARANGO (SINFONIA)"]
[17,860515775,0,"CASBEL CINEMATOGRÁFICAS LTDA."]
[18,890900913,0,"CENTRO COLOMBO AMERICANO DE MEDELLIN"]
[19,890900076,0,"CINE COLOMBIA S.A."]
[20,800139758,4,"CINE EXITO LTDA"]
[21,901429005,8,"CINE GOLD S.A.S."]
[22,901265789,8,"CINECITY S.A.S."]
[23,900456689,6,"CINELANDIA MULTIPLEX S.A.S"]
[24,901310212,3,"CINEMA RÍO S.A.S."]
[25,830052607,4,"CINEMANIA S.A. "]
[26,830055643,3,"CINEMARK COLOMBIA S.A.S."]
[27,900370512,0,"CINEMAS O.T. SAS"]
[28,900912549,1,"CINES UNIDOS S.A.S."]
[29,901155513,0,"COCONI HOTEL CAMPESTRE CENTRO DE CONVENCIONES Y EVENTOS"]
[30,900090098,0,"COLOMBIANA DE CINES  S.A."]
[31,900606307,2,"COMERCIALIZADORA IMPROSER S.A.S."]
[32,890303831,4,"CORPORACION LA TERTULIA PARA LA ENSEÑANZA POPULAR, MUSEOS Y EXTENSION CULTURAL"]
[33,890984010,5,"CORPORACIÓN MUSEO DE ARTE MODERNO DE MEDELLÍN"]
[34,900220792,3,"CORPORACIÓN NÓMADA PRODUCCIONES ARTE VISUAL"]
[35,901364459,7,"ECOCINES S.A.S."]
[36,901311972,7,"ENTERTAINMENT CINEMA CORPORATION "]
[37,900682411,4,"ENTRETENIMIENTO PARA TODOS S.A.S."]
[38,901335090,1,"ESPINAL MULTICINE S.A.S."]
[39,94453282,6,"FABIAN FRANCISCO RODRÍGUEZ DÁVILA"]
[40,1052396737,7,"FREDY EFREN CALVACHE CASTILLO"]
[41,890117305,4,"FUNDACION CINEMATECA DEL CARIBE"]
[42,901099303,0,"FUNDACIÓN DIEGO MARÍA PRODUCCIONES"]
[43,900255241,8,"FUNDACIÓN HAY FESTIVAL DE COLOMBIA"]
[44,891411958,7,"FUNDACIÓN MUSEO DE ARTE DE PEREIRA"]
[45,900357504,8,"FUNDACIÓN REDESPIRAL "]
[46,860024746,1,"FUNDACION UNIVERSIDAD CENTRAL "]
[47,900802562,4,"G & G GOLDEN INVESTMENT S.A.S."]
[48,900983525,7,"GASAJE S.A.S."]
[49,900200095,2,"GYS SOLUCIONES LOGÍSTICAS S.A.S."]
[50,890400881,8,"HOTEL TIUNA S.A.S."]
[51,827000654,7,"IMPORTACIONES  MILENIO  2000 LTDA "]
[52,900413030,9,"INSTITUTO DISTRITAL DE ARTES - IDARTES"]
[53,901003238,8,"INSTITUTO MUNICIPAL DE CULTURA Y TURISMO "]
[54,822006904,2,"INVERSIONES C.G.S. S.A. "]
[55,900037161,2,"INVERSIONES ROFI S.A.S."]
[56,79648396,0,"IVÁN EDUARDO BERNIER GIRALDO"]
[57,80168368,8,"JAIME YESID WILCHES SÁNCHEZ"]
[58,5478482,7,"JAVIER HERNÁN VERA CADENA"]
[59,1077850647,2,"JHON ALEJANDRO POLANCO "]
[60,79938262,7,"JOHN CAMILO OROZCO DAVILA"]
[61,19233329,7,"JOHN URIBE O'SULLIVAN "]
[62,1070972595,6,"JOSE LUIS ROBAYO NIÑO"]
[63,805013653,6,"LA GALERIA Y CIA S.A. "]
[64,79062037,5,"LUIS CARLOS ARIAS HUERTAS"]
[65,1024476088,9,"LUZ KAREN FERNANDEZ VANEGAS"]
[66,830040745,0,"MALOKA CENTRO INTERACTIVO DE CIENCIA Y TECNOLOGIA"]
[67,1063293649,6,"MARIALEJANDRA BUILES ALVAREZ"]
[68,901325413,2,"MEGACINES S.A.S."]
[69,93391141,5,"MILTON OSWALDO PATIÑO PALACIOS"]
[70,43615407,0,"MÓNICA MARÍA GUERRERO HOYOS"]
[71,901136822,0,"MULTICINES EL POBLADO PLAZA S.A.S."]
[72,830049056,5,"MULTICINES S.A.S."]
[73,901518079,4,"MULTIPLEX TEQUENDAMA S.A.S."]
[74,890907106,5,"MUNICIPIO DE ENVIGADO "]
[75,35426603,8,"NANCI MIREYA VEGA CARVAJAL"]
[76,900185315,3,"OPERADORA COLOMBIANA DE CINES S.A. "]
[77,59831875,8,"PATRICIA SANTACRUZ TORRES"]
[78,901135257,4,"PLAZA PRINCIPAL S.A.S."]
[79,860013720,1,"PONTIFICIA UNIVERSIDAD JAVERIANA"]
[80,800030932,1,"PROCINAL BOGOTA LTDA."]
[81,901268661,8,"PRODUCCIONES CIELO ABIERTO S.A.S."]
[82,890939520,9,"PROMOTORA NACIONAL DE CINES S.A.S.-PROCINAL"]
[83,901340382,5,"ROA & CAMARGO S.A.S. Zomac SAS"]
[84,890105652,3,"ROYAL FILMS S.A.S"]
[85,900752805,3,"ROYAL ULTRA S.A.S"]
[86,39627750,1,"SANDRA PATRICIA VERGARA GARCIA"]
[87,901303197,1,"STARK CINEMA SAS Zomac"]
[88,805028041,4,"SUPERTIENDAS CAÑAVERAL S.A.S."]
[89,901345032,5,"TRAMA ASOCIACIÓN CULTURAL"]
[90,860007386,1,"UNIVERSIDAD DE LOS ANDES"]
[91,899999063,3,"UNIVERSIDAD NACIONAL DE COLOMBIA"]
[92,860530236,5,"V.O. CINES Y CIA S EN C"]
[93,901176496,3,"VAIVÉN S.A.S."]
[94,1048848664,6,"VÍCTOR EDUARDO ROA VARGAS"]
[95,82389986,5,"WILSON EDUARDO VERGARA GARCIA"]
[96,1032434682,3,"CRISTIAN EDUARDO CANO JAIME"]
[97,901565870,4,"BADHI S.A.S."]
[98,901764265,1,"GOLDEN CINEMAS VILLAUPIA SAS"]
[99,901264173,7,"CITY CINEMA S.A.S."]
[100,900037985,4,"CORPORACIÓN CINE CLUB EL MURO"]
[101,901758136,5,"CINES Y RESTAURANTES DE COLOMBIA S.A.S."]
[102,827000940,9,"CORPORACIÓN THE LIGHT HOUSE"]
[103,901729487,1,"FUNDACIÓN CULTURAL Y TURÍSTICA DE COLOMBIA"]
[104,901546441,7,"LÓPEZ & SÁNCHEZ S.A.S."]